[Event "Early-Titled-Tuesday-Blitz-February-13-2024"]
[Site "Chess.com"]
[Date "2024.02.13"]
[Round "7"]
[White "GOGIEFF"]
[Black "WhiteKnight2612"]
[Result "1-0"]
[WhiteElo "3022"]
[BlackElo "2871"]
[TimeControl "180+1"]
[EndTime "9:19:04 PST"]
[Termination "GOGIEFF won by resignation"]

1. c4 {[%clk 0:03:00.9]} 1... Nf6 {[%clk 0:02:58.9]} 2. Nc3 {[%clk 0:02:59.9]}
2... e6 {[%clk 0:02:58.1]} 3. e4 {[%clk 0:02:58.7]} 3... d5 {[%clk 0:02:58.1]}
4. cxd5 {[%clk 0:02:59.1]} 4... exd5 {[%clk 0:02:58]} 5. e5 {[%clk 0:02:59.7]}
5... d4 {[%clk 0:02:56.6]} 6. exf6 {[%clk 0:02:58]} 6... dxc3 {[%clk 0:02:57.2]}
7. dxc3 {[%clk 0:02:58.4]} 7... Qxf6 {[%clk 0:02:56.1]} 8. Nf3 {[%clk
0:02:58.6]} 8... Nc6 {[%clk 0:02:52.9]} 9. Bc4 {[%clk 0:02:47.8]} 9... Bg4
{[%clk 0:02:36]} 10. O-O {[%clk 0:02:31.2]} 10... Bxf3 {[%clk 0:02:33.3]} 11.
Qxf3 {[%clk 0:02:25.3]} 11... Qxf3 {[%clk 0:02:32.5]} 12. gxf3 {[%clk
0:02:26.2]} 12... Be7 {[%clk 0:02:20.7]} 13. Bf4 {[%clk 0:02:25.4]} 13... O-O-O
{[%clk 0:02:19.4]} 14. Bxf7 {[%clk 0:02:23.6]} 14... Rhf8 {[%clk 0:02:16.5]} 15.
Be6+ {[%clk 0:02:23.5]} 15... Kb8 {[%clk 0:02:17]} 16. Bg3 {[%clk 0:02:17.6]}
16... Rxf3 {[%clk 0:02:16.9]} 17. Rad1 {[%clk 0:02:14.3]} 17... Bd6 {[%clk
0:02:13.2]} 18. Rfe1 {[%clk 0:02:05.9]} 18... Rf6 {[%clk 0:02:03.1]} 19. Bb3
{[%clk 0:02:00.1]} 19... a6 {[%clk 0:02:01.1]} 20. Kg2 {[%clk 0:01:59.4]} 20...
Rdf8 {[%clk 0:01:59.4]} 21. Re2 {[%clk 0:01:55]} 21... Rg6 {[%clk 0:01:58]} 22.
Bc2 {[%clk 0:01:54.1]} 22... Rh6 {[%clk 0:01:56.7]} 23. Rd5 {[%clk 0:01:49.9]}
23... Ka7 {[%clk 0:01:45.3]} 24. b4 {[%clk 0:01:48.1]} 24... Rhf6 {[%clk
0:01:10.9]} 25. Bxh7 {[%clk 0:01:42.3]} 25... g6 {[%clk 0:01:11.1]} 26. Rg5
{[%clk 0:01:42]} 26... Rf3 {[%clk 0:00:28.5]} 27. Bxd6 {[%clk 0:01:36.3]} 27...
cxd6 {[%clk 0:00:28.2]} 28. Rg3 {[%clk 0:01:37]} 28... Rxg3+ {[%clk 0:00:25.3]}
29. hxg3 {[%clk 0:01:35.4]} 29... Rf6 {[%clk 0:00:17.4]} 30. f4 {[%clk
0:01:35.3]} 30... Kb6 {[%clk 0:00:17.2]} 31. Kh3 {[%clk 0:01:32.1]} 31... a5
{[%clk 0:00:17.7]} 32. bxa5+ {[%clk 0:01:30.6]} 32... Nxa5 {[%clk 0:00:18.6]}
33. Kg4 {[%clk 0:01:30.8]} 33... d5 {[%clk 0:00:19]} 34. Kg5 {[%clk 0:01:30.8]}
34... Rd6 {[%clk 0:00:19.5]} 35. Bxg6 {[%clk 0:01:31]} 35... Kc5 {[%clk
0:00:20.4]} 36. f5 {[%clk 0:01:31.2]} 1-0

[Event "Early-Titled-Tuesday-Blitz-February-13-2024"]
[Site "Chess.com"]
[Date "2024.02.13"]
[Round "7"]
[White "chipmunknau"]
[Black "maicolbenavides"]
[Result "1-0"]
[WhiteElo "2729"]
[BlackElo "2529"]
[TimeControl "180+1"]
[EndTime "9:19:04 PST"]
[Termination "chipmunknau won by resignation"]

1. Nf3 {[%clk 0:03:00.9]} 1... Nf6 {[%clk 0:02:59.9]} 2. c4 {[%clk 0:02:59.5]}
2... g6 {[%clk 0:03:00]} 3. g3 {[%clk 0:02:59.5]} 3... Bg7 {[%clk 0:03:00.1]} 4.
Bg2 {[%clk 0:03:00.1]} 4... O-O {[%clk 0:03:00.6]} 5. O-O {[%clk 0:03:00.7]}
5... d6 {[%clk 0:03:01.2]} 6. Nc3 {[%clk 0:03:00.2]} 6... Nc6 {[%clk 0:03:01.4]}
7. Rb1 {[%clk 0:03:00]} 7... e5 {[%clk 0:03:00.7]} 8. d3 {[%clk 0:02:59.7]} 8...
Nd7 {[%clk 0:02:59.6]} 9. b4 {[%clk 0:02:56.4]} 9... h6 {[%clk 0:02:59.2]} 10.
b5 {[%clk 0:02:55.7]} 10... Ne7 {[%clk 0:02:59.5]} 11. d4 {[%clk 0:02:48.8]}
11... f5 {[%clk 0:02:52.7]} 12. dxe5 {[%clk 0:02:39.2]} 12... Nxe5 {[%clk
0:02:51.1]} 13. Nxe5 {[%clk 0:02:31.8]} 13... Bxe5 {[%clk 0:02:52]} 14. Nd5
{[%clk 0:02:29.2]} 14... Nxd5 {[%clk 0:02:47.1]} 15. Qxd5+ {[%clk 0:02:27.1]}
15... Kg7 {[%clk 0:02:47]} 16. f4 {[%clk 0:02:11.5]} 16... Bf6 {[%clk
0:02:43.4]} 17. e4 {[%clk 0:01:55.2]} 17... fxe4 {[%clk 0:02:33.7]} 18. Bxe4
{[%clk 0:01:56.1]} 18... Bh3 {[%clk 0:02:19.9]} 19. Re1 {[%clk 0:01:54.6]} 19...
Rb8 {[%clk 0:02:13.7]} 20. Qd3 {[%clk 0:01:54.1]} 20... Qe8 {[%clk 0:01:57.4]}
21. Bb2 {[%clk 0:01:26.9]} 21... Qf7 {[%clk 0:01:50]} 22. Bd5 {[%clk 0:01:22]}
22... Qd7 {[%clk 0:01:47.4]} 23. Bxf6+ {[%clk 0:01:13.2]} 23... Rxf6 {[%clk
0:01:45.9]} 24. Qd4 {[%clk 0:01:10.7]} 24... b6 {[%clk 0:00:42.5]} 25. Re3
{[%clk 0:00:58.4]} 25... Re8 {[%clk 0:00:34.3]} 26. Bc6 {[%clk 0:00:58.2]} 26...
Rxe3 {[%clk 0:00:34.3]} 27. Bxd7 {[%clk 0:00:57.9]} 1-0

[Event "Early-Titled-Tuesday-Blitz-February-13-2024"]
[Site "Chess.com"]
[Date "2024.02.13"]
[Round "7"]
[White "EsmeraldasAnderson03"]
[Black "C_K_G"]
[Result "1-0"]
[WhiteElo "2401"]
[BlackElo "2130"]
[TimeControl "180+1"]
[EndTime "9:19:16 PST"]
[Termination "EsmeraldasAnderson03 won on time"]

1. d4 {[%clk 0:03:00.2]} 1... d5 {[%clk 0:02:59.8]} 2. c4 {[%clk 0:03:00.8]}
2... e6 {[%clk 0:03:00.1]} 3. cxd5 {[%clk 0:03:01.3]} 3... exd5 {[%clk 0:03:00]}
4. Nc3 {[%clk 0:03:02.2]} 4... Nf6 {[%clk 0:03:00.3]} 5. Bg5 {[%clk 0:03:00.5]}
5... Be7 {[%clk 0:03:00.3]} 6. e3 {[%clk 0:02:59.4]} 6... O-O {[%clk 0:03:00.3]}
7. Nf3 {[%clk 0:03:00.2]} 7... a6 {[%clk 0:02:59.3]} 8. Bd3 {[%clk 0:02:57.3]}
8... h6 {[%clk 0:02:59.2]} 9. Bh4 {[%clk 0:02:57.5]} 9... b6 {[%clk 0:02:57.5]}
10. O-O {[%clk 0:02:56]} 10... c5 {[%clk 0:02:56.3]} 11. dxc5 {[%clk 0:02:54.9]}
11... bxc5 {[%clk 0:02:57.2]} 12. Rc1 {[%clk 0:02:55.2]} 12... Be6 {[%clk
0:02:52.7]} 13. Bb1 {[%clk 0:02:54.5]} 13... Nbd7 {[%clk 0:02:42.4]} 14. Qc2
{[%clk 0:02:40.5]} 14... Re8 {[%clk 0:02:40]} 15. Rfd1 {[%clk 0:02:40.1]} 15...
Nf8 {[%clk 0:02:34.2]} 16. Ne5 {[%clk 0:02:37.7]} 16... Qc7 {[%clk 0:02:14.7]}
17. Bg3 {[%clk 0:02:31.3]} 17... Bd6 {[%clk 0:02:12]} 18. Nd3 {[%clk 0:02:31.2]}
18... Bxg3 {[%clk 0:02:04.7]} 19. hxg3 {[%clk 0:02:32.1]} 19... Rac8 {[%clk
0:01:52.1]} 20. Ne2 {[%clk 0:02:31.8]} 20... N8d7 {[%clk 0:01:48.6]} 21. Nef4
{[%clk 0:02:30.1]} 21... Bf5 {[%clk 0:01:44.1]} 22. Qa4 {[%clk 0:02:28.4]} 22...
c4 {[%clk 0:01:38.7]} 23. Nb4 {[%clk 0:02:25.8]} 23... Bxb1 {[%clk 0:01:35.6]}
24. Rxb1 {[%clk 0:02:26.7]} 24... Nc5 {[%clk 0:01:25.5]} 25. Qa3 {[%clk
0:02:24.4]} 25... Re5 {[%clk 0:01:04.3]} 26. Nbxd5 {[%clk 0:02:21.7]} 26... Nxd5
{[%clk 0:00:59.4]} 27. Nxd5 {[%clk 0:02:22.6]} 27... Qb7 {[%clk 0:00:40.4]} 28.
Nf4 {[%clk 0:02:06]} 28... Ne4 {[%clk 0:00:20.3]} 29. Rbc1 {[%clk 0:01:55.5]}
29... Rb5 {[%clk 0:00:16.1]} 30. Rc2 {[%clk 0:01:53.5]} 30... Ng5 {[%clk
0:00:12.6]} 31. Rdc1 {[%clk 0:01:40.9]} 31... Rbc5 {[%clk 0:00:11.8]} 32. Qa4
{[%clk 0:01:40.1]} 32... Qc7 {[%clk 0:00:08.9]} 33. Qxa6 {[%clk 0:01:35.9]}
33... c3 {[%clk 0:00:02.3]} 34. Rxc3 {[%clk 0:01:35.5]} 34... Rxc3 {[%clk
0:00:02.3]} 35. Rxc3 {[%clk 0:01:36.4]} 1-0

[Event "Early-Titled-Tuesday-Blitz-February-13-2024"]
[Site "Chess.com"]
[Date "2024.02.13"]
[Round "7"]
[White "Der_Balak_3Halak"]
[Black "Harry_Rakkel"]
[Result "0-1"]
[WhiteElo "2443"]
[BlackElo "2677"]
[TimeControl "180+1"]
[EndTime "9:19:19 PST"]
[Termination "Harry_Rakkel won by resignation"]

1. Nf3 {[%clk 0:01:09.2]} 1... Nf6 {[%clk 0:02:57.7]} 2. g3 {[%clk 0:01:10.1]}
2... d5 {[%clk 0:02:56.8]} 3. Bg2 {[%clk 0:01:10.2]} 3... c6 {[%clk 0:02:57.2]}
4. O-O {[%clk 0:01:10.8]} 4... Bf5 {[%clk 0:02:57]} 5. d4 {[%clk 0:01:11.7]}
5... e6 {[%clk 0:02:56.1]} 6. Bf4 {[%clk 0:01:12.2]} 6... Nbd7 {[%clk
0:02:55.9]} 7. Nbd2 {[%clk 0:01:11.8]} 7... Be7 {[%clk 0:02:55.8]} 8. Re1 {[%clk
0:01:12.3]} 8... O-O {[%clk 0:02:55.1]} 9. Ne5 {[%clk 0:01:12.8]} 9... h6 {[%clk
0:02:54.2]} 10. c3 {[%clk 0:01:06.8]} 10... a5 {[%clk 0:02:53.3]} 11. a4 {[%clk
0:01:05.1]} 11... Bh7 {[%clk 0:02:53.1]} 12. Qb3 {[%clk 0:01:04.3]} 12... Qb6
{[%clk 0:02:35.3]} 13. Nxd7 {[%clk 0:00:57.6]} 13... Nxd7 {[%clk 0:02:35.1]} 14.
Qxb6 {[%clk 0:00:55.7]} 14... Nxb6 {[%clk 0:02:35]} 15. e4 {[%clk 0:00:56.6]}
15... Rfc8 {[%clk 0:02:34]} 16. b3 {[%clk 0:00:50.8]} 16... Kf8 {[%clk
0:02:26.5]} 17. Rac1 {[%clk 0:00:49.4]} 17... c5 {[%clk 0:02:23.3]} 18. dxc5
{[%clk 0:00:47.1]} 18... Bxc5 {[%clk 0:02:21.7]} 19. c4 {[%clk 0:00:35.1]} 19...
Ba3 {[%clk 0:02:06.8]} 20. Ra1 {[%clk 0:00:33.3]} 20... Bb4 {[%clk 0:02:04.6]}
21. exd5 {[%clk 0:00:28.6]} 21... exd5 {[%clk 0:02:02]} 22. cxd5 {[%clk
0:00:26.8]} 22... Nd7 {[%clk 0:01:41.6]} 23. Nc4 {[%clk 0:00:24.4]} 23... Bxe1
{[%clk 0:01:37.9]} 24. Rxe1 {[%clk 0:00:24.8]} 24... Re8 {[%clk 0:01:37.5]} 25.
Rd1 {[%clk 0:00:21.2]} 25... Bc2 {[%clk 0:01:28.3]} 26. Rc1 {[%clk 0:00:20.5]}
26... Bxb3 {[%clk 0:01:27.4]} 27. Nd6 {[%clk 0:00:21.2]} 27... Re2 {[%clk
0:01:22.8]} 28. Nxb7 {[%clk 0:00:17.9]} 28... Bxa4 {[%clk 0:01:21.1]} 29. d6
{[%clk 0:00:15.5]} 29... Rae8 {[%clk 0:01:18.6]} 30. Bh1 {[%clk 0:00:10.5]}
30... Re1+ {[%clk 0:01:17.6]} 31. Kg2 {[%clk 0:00:10]} 31... Rxc1 {[%clk
0:01:16]} 32. Bxc1 {[%clk 0:00:10.9]} 32... Bc6+ {[%clk 0:01:15]} 0-1

[Event "Early-Titled-Tuesday-Blitz-February-13-2024"]
[Site "Chess.com"]
[Date "2024.02.13"]
[Round "7"]
[White "JonasEilenberg"]
[Black "MatthewG-p4p"]
[Result "0-1"]
[WhiteElo "2594"]
[BlackElo "2820"]
[TimeControl "180+1"]
[EndTime "9:19:20 PST"]
[Termination "MatthewG-p4p won by resignation"]

1. d4 {[%clk 0:03:00.9]} 1... Nf6 {[%clk 0:02:58.9]} 2. c4 {[%clk 0:03:01.1]}
2... c5 {[%clk 0:02:59.4]} 3. d5 {[%clk 0:03:01.3]} 3... e6 {[%clk 0:03:00]} 4.
Nc3 {[%clk 0:03:01.4]} 4... exd5 {[%clk 0:03:00.9]} 5. cxd5 {[%clk 0:03:02.3]}
5... d6 {[%clk 0:03:01.8]} 6. e4 {[%clk 0:03:02.5]} 6... g6 {[%clk 0:03:02.7]}
7. Bd3 {[%clk 0:03:00.7]} 7... Bg7 {[%clk 0:03:03.1]} 8. h3 {[%clk 0:03:01.4]}
8... O-O {[%clk 0:03:03.6]} 9. Nf3 {[%clk 0:03:01.9]} 9... Nbd7 {[%clk
0:03:03.6]} 10. O-O {[%clk 0:03:00]} 10... Re8 {[%clk 0:03:02.2]} 11. Bf4 {[%clk
0:02:55.2]} 11... c4 {[%clk 0:02:58.3]} 12. Bc2 {[%clk 0:02:46.7]} 12... Nc5
{[%clk 0:02:56.7]} 13. Re1 {[%clk 0:02:46.7]} 13... b5 {[%clk 0:02:54.4]} 14. a3
{[%clk 0:02:20.8]} 14... Qb6 {[%clk 0:02:52.6]} 15. Nd4 {[%clk 0:02:18.9]} 15...
Bd7 {[%clk 0:02:51]} 16. e5 {[%clk 0:01:56.3]} 16... Nh5 {[%clk 0:02:29.4]} 17.
e6 {[%clk 0:01:17.9]} 17... Nxf4 {[%clk 0:02:27.9]} 18. exd7 {[%clk 0:01:18.1]}
18... Nxd7 {[%clk 0:01:56.5]} 19. Nc6 {[%clk 0:01:17.5]} 19... Ne5 {[%clk
0:01:51.1]} 20. Be4 {[%clk 0:01:07.7]} 20... Ned3 {[%clk 0:01:48.3]} 21. Re3
{[%clk 0:00:57.6]} 21... Nxb2 {[%clk 0:01:34.6]} 22. Qf3 {[%clk 0:00:58]} 22...
Nbd3 {[%clk 0:01:30.9]} 23. Bxd3 {[%clk 0:00:26]} 23... Nxd3 {[%clk 0:01:15.1]}
24. Rxd3 {[%clk 0:00:25.6]} 24... cxd3 {[%clk 0:01:13.7]} 25. Qxd3 {[%clk
0:00:26.5]} 25... Qc5 {[%clk 0:01:09.1]} 26. Rc1 {[%clk 0:00:25.7]} 26... Qxa3
{[%clk 0:01:05.9]} 27. Rc2 {[%clk 0:00:19.5]} 27... b4 {[%clk 0:01:05.1]} 0-1

[Event "Early-Titled-Tuesday-Blitz-February-13-2024"]
[Site "Chess.com"]
[Date "2024.02.13"]
[Round "7"]
[White "Zhigalko_Sergei"]
[Black "Kildepiotr"]
[Result "1-0"]
[WhiteElo "2951"]
[BlackElo "2693"]
[TimeControl "180+1"]
[EndTime "9:19:24 PST"]
[Termination "Zhigalko_Sergei won by resignation"]

1. e4 {[%clk 0:03:00.9]} 1... e6 {[%clk 0:02:59.1]} 2. d4 {[%clk 0:03:01]} 2...
d5 {[%clk 0:02:59.6]} 3. e5 {[%clk 0:03:01.3]} 3... c5 {[%clk 0:02:59.7]} 4. c3
{[%clk 0:03:01.9]} 4... Nc6 {[%clk 0:03:00.3]} 5. Nf3 {[%clk 0:03:02.1]} 5...
Bd7 {[%clk 0:03:00.8]} 6. Be2 {[%clk 0:03:02.1]} 6... Nge7 {[%clk 0:03:00.3]} 7.
Na3 {[%clk 0:03:02]} 7... cxd4 {[%clk 0:02:54.8]} 8. cxd4 {[%clk 0:03:02.9]}
8... Nb4 {[%clk 0:02:54.7]} 9. Nb5 {[%clk 0:02:43.9]} 9... Bxb5 {[%clk
0:02:41.4]} 10. Bxb5+ {[%clk 0:02:43.4]} 10... Nbc6 {[%clk 0:02:38.5]} 11. O-O
{[%clk 0:02:38.5]} 11... a6 {[%clk 0:02:37.7]} 12. Bd3 {[%clk 0:02:36.8]} 12...
Ng6 {[%clk 0:02:33.2]} 13. Be3 {[%clk 0:02:26.5]} 13... Be7 {[%clk 0:02:29.9]}
14. Rc1 {[%clk 0:02:25.6]} 14... O-O {[%clk 0:02:29.2]} 15. g3 {[%clk
0:02:22.3]} 15... Qb6 {[%clk 0:02:25.6]} 16. Qe2 {[%clk 0:01:57]} 16... Rfc8
{[%clk 0:02:24.8]} 17. h4 {[%clk 0:01:56.8]} 17... Nf8 {[%clk 0:02:21.1]} 18.
Kg2 {[%clk 0:01:53.8]} 18... Nb4 {[%clk 0:02:11.7]} 19. Bb1 {[%clk 0:01:53.3]}
19... Qb5 {[%clk 0:02:11.8]} 20. Qd2 {[%clk 0:01:50.3]} 20... Nc6 {[%clk
0:02:01]} 21. h5 {[%clk 0:01:18.2]} 21... Na5 {[%clk 0:01:51.6]} 22. b3 {[%clk
0:01:07.9]} 22... Ba3 {[%clk 0:01:46.8]} 23. Rc2 {[%clk 0:00:48.8]} 23... Rxc2
{[%clk 0:01:44.4]} 24. Qxc2 {[%clk 0:00:48.6]} 24... Nc6 {[%clk 0:01:34.8]} 25.
Ng5 {[%clk 0:00:35.4]} 25... Nb4 {[%clk 0:01:28.8]} 26. Qc7 {[%clk 0:00:29.8]}
26... Qd7 {[%clk 0:01:26]} 27. Bxh7+ {[%clk 0:00:28.5]} 27... Kh8 {[%clk
0:01:24.8]} 28. Qa5 {[%clk 0:00:11.3]} 28... Nc2 {[%clk 0:01:00.8]} 29. Bxc2
{[%clk 0:00:10.3]} 1-0

[Event "Early-Titled-Tuesday-Blitz-February-13-2024"]
[Site "Chess.com"]
[Date "2024.02.13"]
[Round "7"]
[White "crazy_m_attack"]
[Black "bazar-wokzal"]
[Result "0-1"]
[WhiteElo "2471"]
[BlackElo "2672"]
[TimeControl "180+1"]
[EndTime "9:19:26 PST"]
[Termination "bazar-wokzal won by resignation"]

1. e4 {[%clk 0:03:00.9]} 1... Nc6 {[%clk 0:02:58.5]} 2. Nf3 {[%clk 0:02:59.3]}
2... d5 {[%clk 0:02:58.4]} 3. exd5 {[%clk 0:02:58.4]} 3... Qxd5 {[%clk
0:02:59.3]} 4. Nc3 {[%clk 0:02:58.4]} 4... Qa5 {[%clk 0:02:59.2]} 5. d4 {[%clk
0:02:53.5]} 5... Bg4 {[%clk 0:02:58.7]} 6. Bd2 {[%clk 0:02:47.5]} 6... O-O-O
{[%clk 0:02:57.9]} 7. d5 {[%clk 0:02:37.8]} 7... Nb4 {[%clk 0:02:55.8]} 8. Bc4
{[%clk 0:02:24.8]} 8... Bxf3 {[%clk 0:02:55.5]} 9. gxf3 {[%clk 0:02:25.7]} 9...
Nf6 {[%clk 0:02:55]} 10. a3 {[%clk 0:02:19.6]} 10... Qc5 {[%clk 0:02:55]} 11.
Bb3 {[%clk 0:02:12.4]} 11... Nbxd5 {[%clk 0:02:52.5]} 12. Nxd5 {[%clk
0:02:05.4]} 12... Nxd5 {[%clk 0:02:52.1]} 13. Qe2 {[%clk 0:02:05.5]} 13... e6
{[%clk 0:02:49.4]} 14. O-O-O {[%clk 0:02:03]} 14... Be7 {[%clk 0:02:46.6]} 15.
Bxd5 {[%clk 0:01:45.9]} 15... Rxd5 {[%clk 0:02:38.5]} 16. Bc3 {[%clk 0:01:42.9]}
16... Rhd8 {[%clk 0:02:28.6]} 17. Rxd5 {[%clk 0:01:34.5]} 17... Qxd5 {[%clk
0:02:28.4]} 18. Kb1 {[%clk 0:01:31.9]} 18... Bf6 {[%clk 0:02:18.1]} 19. Bxf6
{[%clk 0:01:28.6]} 19... gxf6 {[%clk 0:02:17.9]} 20. Rg1 {[%clk 0:01:27.3]}
20... h5 {[%clk 0:02:14.9]} 21. f4 {[%clk 0:01:22.2]} 21... b6 {[%clk
0:02:06.7]} 22. Qa6+ {[%clk 0:00:54.1]} 22... Qb7 {[%clk 0:01:55.3]} 23. Qe2
{[%clk 0:00:52.1]} 23... Qd5 {[%clk 0:01:53.4]} 24. Qa6+ {[%clk 0:00:43.6]}
24... Kb8 {[%clk 0:01:53.6]} 25. Qe2 {[%clk 0:00:33.8]} 25... Kb7 {[%clk
0:01:50.9]} 26. b3 {[%clk 0:00:32.1]} 26... a5 {[%clk 0:01:50.5]} 27. a4 {[%clk
0:00:31.8]} 27... Qf5 {[%clk 0:01:38.3]} 28. Qf3+ {[%clk 0:00:25.6]} 28... Qd5
{[%clk 0:01:32.8]} 29. Qc3 {[%clk 0:00:23.5]} 29... e5 {[%clk 0:01:10.3]} 30.
fxe5 {[%clk 0:00:20.6]} 30... fxe5 {[%clk 0:01:10.3]} 31. Rg5 {[%clk 0:00:18.8]}
31... f6 {[%clk 0:01:10.3]} 32. Rxh5 {[%clk 0:00:16.6]} 32... Qd1+ {[%clk
0:01:09]} 0-1

[Event "Early-Titled-Tuesday-Blitz-February-13-2024"]
[Site "Chess.com"]
[Date "2024.02.13"]
[Round "7"]
[White "WindWhistler11"]
[Black "chessdjw"]
[Result "0-1"]
[WhiteElo "2496"]
[BlackElo "2745"]
[TimeControl "180+1"]
[EndTime "9:19:27 PST"]
[Termination "chessdjw won by checkmate"]

1. c4 {[%clk 0:03:00.9]} 1... e5 {[%clk 0:02:58.7]} 2. Nc3 {[%clk 0:03:00.6]}
2... Bb4 {[%clk 0:02:57.8]} 3. Nf3 {[%clk 0:02:59.4]} 3... Bxc3 {[%clk
0:02:57.8]} 4. dxc3 {[%clk 0:02:57]} 4... d6 {[%clk 0:02:57.7]} 5. c5 {[%clk
0:02:47.9]} 5... Nf6 {[%clk 0:02:47]} 6. cxd6 {[%clk 0:02:45.1]} 6... cxd6
{[%clk 0:02:46.8]} 7. e4 {[%clk 0:02:43.3]} 7... O-O {[%clk 0:02:44.4]} 8. Bg5
{[%clk 0:02:41.7]} 8... h6 {[%clk 0:02:43.9]} 9. Bh4 {[%clk 0:02:20.2]} 9... g5
{[%clk 0:02:24.4]} 10. Bg3 {[%clk 0:02:14]} 10... Nxe4 {[%clk 0:02:23]} 11. Qc2
{[%clk 0:02:13]} 11... Nxg3 {[%clk 0:02:09]} 12. hxg3 {[%clk 0:02:09.5]} 12...
Qf6 {[%clk 0:02:08.5]} 13. O-O-O {[%clk 0:01:32.6]} 13... Nc6 {[%clk 0:02:08.1]}
14. Bd3 {[%clk 0:01:12.3]} 14... d5 {[%clk 0:02:02]} 15. Bh7+ {[%clk 0:01:09]}
15... Kg7 {[%clk 0:02:02.4]} 16. Rxd5 {[%clk 0:01:09]} 16... Be6 {[%clk
0:02:03.1]} 17. Rd6 {[%clk 0:01:04.5]} 17... Nb4 {[%clk 0:01:46.4]} 18. Qe4
{[%clk 0:00:54.2]} 18... Nxa2+ {[%clk 0:01:44.5]} 19. Kb1 {[%clk 0:00:50.7]}
19... Rac8 {[%clk 0:01:36.7]} 20. Nxe5 {[%clk 0:00:39.7]} 20... Nxc3+ {[%clk
0:01:18.6]} 21. bxc3 {[%clk 0:00:39]} 21... Rxc3 {[%clk 0:01:18.2]} 22. f4
{[%clk 0:00:25.1]} 22... Ba2+ {[%clk 0:01:00.1]} 23. Kb2 {[%clk 0:00:23.9]}
23... Qxd6 {[%clk 0:01:00.4]} 24. Kxc3 {[%clk 0:00:24.2]} 24... Rc8+ {[%clk
0:01:00.5]} 25. Kb2 {[%clk 0:00:15.3]} 25... Qd2+ {[%clk 0:01:00]} 26. Ka1
{[%clk 0:00:14.3]} 26... Bd5 {[%clk 0:01:00.4]} 27. Qb1 {[%clk 0:00:04.4]} 27...
Qa5+ {[%clk 0:00:58.7]} 28. Kb2 {[%clk 0:00:04.4]} 28... Qc3# {[%clk 0:00:59.3]}
0-1

[Event "Early-Titled-Tuesday-Blitz-February-13-2024"]
[Site "Chess.com"]
[Date "2024.02.13"]
[Round "7"]
[White "Durarbayli"]
[Black "chess123456s"]
[Result "1-0"]
[WhiteElo "2912"]
[BlackElo "2616"]
[TimeControl "180+1"]
[EndTime "9:19:31 PST"]
[Termination "Durarbayli won by resignation"]

1. e4 {[%clk 0:03:00.9]} 1... e5 {[%clk 0:02:59.6]} 2. Nf3 {[%clk 0:03:00.3]}
2... Nc6 {[%clk 0:02:59.4]} 3. d4 {[%clk 0:03:00.9]} 3... exd4 {[%clk
0:03:00.3]} 4. Nxd4 {[%clk 0:03:01.6]} 4... Nf6 {[%clk 0:03:00.9]} 5. Nxc6
{[%clk 0:03:01.5]} 5... bxc6 {[%clk 0:03:01.8]} 6. e5 {[%clk 0:03:02.2]} 6...
Qe7 {[%clk 0:03:02.5]} 7. Qe2 {[%clk 0:03:02.6]} 7... Nd5 {[%clk 0:03:02.9]} 8.
h4 {[%clk 0:03:03.5]} 8... a5 {[%clk 0:03:01.7]} 9. c4 {[%clk 0:03:01.9]} 9...
Ba6 {[%clk 0:03:01.5]} 10. Rh3 {[%clk 0:03:00]} 10... f6 {[%clk 0:02:47]} 11.
exf6 {[%clk 0:02:53.7]} 11... Qxe2+ {[%clk 0:02:42.5]} 12. Bxe2 {[%clk
0:02:52.2]} 12... Nxf6 {[%clk 0:02:42.3]} 13. Nc3 {[%clk 0:02:48.1]} 13... Kf7
{[%clk 0:02:40.8]} 14. Bf4 {[%clk 0:02:32.6]} 14... Bb4 {[%clk 0:02:26.4]} 15.
O-O-O {[%clk 0:02:30.9]} 15... d6 {[%clk 0:02:21]} 16. a3 {[%clk 0:02:21.2]}
16... Bxc3 {[%clk 0:02:20]} 17. Rxc3 {[%clk 0:02:22.1]} 17... Rhe8 {[%clk
0:02:19.6]} 18. Bf3 {[%clk 0:02:21]} 18... Ne4 {[%clk 0:01:50.1]} 19. Re3 {[%clk
0:02:04.8]} 19... Nc5 {[%clk 0:01:11.3]} 20. Bxc6 {[%clk 0:01:59.8]} 20... Rxe3
{[%clk 0:01:09.7]} 21. Bxe3 {[%clk 0:02:00.7]} 21... Bb7 {[%clk 0:01:02.5]} 22.
Bxb7 {[%clk 0:01:58.4]} 22... Nxb7 {[%clk 0:01:03.4]} 23. b3 {[%clk 0:01:55.3]}
23... Re8 {[%clk 0:01:01.6]} 24. Kc2 {[%clk 0:01:53.1]} 24... Re4 {[%clk
0:00:58.8]} 25. g3 {[%clk 0:01:50.7]} 25... a4 {[%clk 0:00:52]} 26. Kd3 {[%clk
0:01:50.5]} 26... Re5 {[%clk 0:00:51.9]} 27. b4 {[%clk 0:01:50.9]} 27... Nd8
{[%clk 0:00:47.6]} 28. Kc3 {[%clk 0:01:51]} 28... Ne6 {[%clk 0:00:45.9]} 29. Rd5
{[%clk 0:01:48.8]} 29... Kf6 {[%clk 0:00:37]} 30. Ra5 {[%clk 0:01:38.2]} 30...
Kf5 {[%clk 0:00:24.3]} 31. Rxa4 {[%clk 0:01:35.7]} 31... Kg4 {[%clk 0:00:20.7]}
32. Ra5 {[%clk 0:01:34.7]} 32... Re4 {[%clk 0:00:17.8]} 33. Rd5 {[%clk
0:01:31.9]} 33... Kf3 {[%clk 0:00:16.2]} 34. a4 {[%clk 0:01:31.9]} 34... Nd8
{[%clk 0:00:13.9]} 35. a5 {[%clk 0:01:31.5]} 35... Nc6 {[%clk 0:00:14.1]} 36. a6
{[%clk 0:01:30.5]} 36... Re8 {[%clk 0:00:12.7]} 37. b5 {[%clk 0:01:30.5]} 37...
Ne5 {[%clk 0:00:12.9]} 38. c5 {[%clk 0:01:29.9]} 38... Rb8 {[%clk 0:00:12.7]}
39. cxd6 {[%clk 0:01:29.4]} 39... cxd6 {[%clk 0:00:13.6]} 40. a7 {[%clk
0:01:30]} 40... Ra8 {[%clk 0:00:13.9]} 41. b6 {[%clk 0:01:30.3]} 41... Nd7
{[%clk 0:00:13.2]} 42. Rxd6 {[%clk 0:01:29.5]} 42... Nxb6 {[%clk 0:00:13.5]} 43.
Bxb6 {[%clk 0:01:28.9]} 1-0